[Event "Berliner Meisterschaft 2023"]
[Site "Berlin"]
[Date "2023.04.12"]
[Round "5.1"]
[White "Schmidek, Emil"]
[Black "Lagunow, Raphael"]
[Result "1-0"]
[TimeControl "90 minutes / 40 moves + 30 minutes + 30 seconds"]
[WhiteTitle "IM"]
[BlackTitle "IM"]
[WhiteFideId "12908150"]
[BlackFideId "246552644"]
[WhiteElo "2433"]
[BlackElo "2410"]

1. d4 {[%clk 01:30:58]} {[%emt 00:00:02]} Nf6 {[%clk 01:22:19]} {[%emt
00:08:36]} 2. c4 {[%clk 01:31:25]} {[%emt 00:00:09]} g6 {[%clk 01:22:43]}
{[%emt 00:00:06]} 3. f3 {[%clk 01:31:49]} {[%emt 00:00:06]} Bg7 {[%clk
01:23:03]} {[%emt 00:00:09]} 4. e4 {[%clk 01:32:11]} {[%emt 00:00:08]} d6
{[%clk 01:23:14]} {[%emt 00:00:19]} 5. Nc3 {[%clk 01:32:27]} {[%emt 00:00:15]}
O-O {[%clk 01:23:33]} {[%emt 00:00:10]} 6. Be3 {[%clk 01:32:48]} {[%emt
00:00:09]} c5 {[%clk 01:23:27]} {[%emt 00:00:36]} 7. d5 {[%clk 01:33:10]}
{[%emt 00:00:08]} e6 {[%clk 01:23:08]} {[%emt 00:00:49]} 8. Qd2 {[%clk
01:33:14]} {[%emt 00:00:27]} exd5 {[%clk 01:22:48]} {[%emt 00:00:49]} 9. cxd5
{[%clk 01:33:36]} {[%emt 00:00:09]} a6 {[%clk 01:21:03]} {[%emt 00:02:14]} 10.
a4 {[%clk 01:33:55]} {[%emt 00:00:11]} Re8 {[%clk 01:15:00]} {[%emt 00:06:32]}
11. Be2 {[%clk 01:34:14]} {[%emt 00:00:11]} Qa5 {[%clk 01:06:53]} {[%emt
00:08:38]} 12. Bf4 {[%clk 01:34:07]} {[%emt 00:00:37]} Qc7 {[%clk 00:52:44]}
{[%emt 00:14:39]} 13. Rc1 {[%clk 01:07:04]} {[%emt 00:27:33]} Nbd7 {[%clk
00:35:16]} {[%emt 00:17:59]} 14. Nh3 {[%clk 01:03:35]} {[%emt 00:03:59]} Ne5
{[%clk 00:35:38]} {[%emt 00:00:08]} 15. Nf2 {[%clk 01:03:51]} {[%emt 00:00:14]}
Qa5 {[%clk 00:32:21]} {[%emt 00:03:47]} 16. Bh6 {[%clk 00:39:37]} {[%emt
00:24:43]} Bh8 {[%clk 00:24:56]} {[%emt 00:07:54]} 17. h3 {[%clk 00:37:32]}
{[%emt 00:02:36]} Qb4 {[%clk 00:23:39]} {[%emt 00:01:47]} 18. O-O {[%clk
00:32:57]} {[%emt 00:05:04]} Nh5 {[%clk 00:20:48]} {[%emt 00:03:21]} 19. f4
{[%clk 00:31:36]} {[%emt 00:01:51]} Nc4 {[%clk 00:18:59]} {[%emt 00:02:19]} 20.
Bxc4 {[%clk 00:31:39]} {[%emt 00:00:28]} Qxc4 {[%clk 00:19:25]} {[%emt
00:00:04]} 21. Nb5 {[%clk 00:31:39]} {[%emt 00:00:29]} axb5 {[%clk 00:19:44]}
{[%emt 00:00:11]} 22. Rxc4 {[%clk 00:31:57]} {[%emt 00:00:13]} bxc4 {[%clk
00:20:09]} {[%emt 00:00:04]} 23. e5 {[%clk 00:22:56]} {[%emt 00:09:31]} dxe5
{[%clk 00:18:08]} {[%emt 00:02:31]} 24. g4 {[%clk 00:21:04]} {[%emt 00:02:22]}
Nf6 {[%clk 00:14:27]} {[%emt 00:04:10]} 25. fxe5 {[%clk 00:17:53]} {[%emt
00:03:41]} Rxe5 {[%clk 00:14:48]} {[%emt 00:00:09]} 26. Re1 {[%clk 00:16:48]}
{[%emt 00:01:35]} Rxe1+ {[%clk 00:12:53]} {[%emt 00:02:24]} 27. Qxe1 {[%clk
00:17:17]} {[%emt 00:00:02]} Bd7 {[%clk 00:12:43]} {[%emt 00:00:40]} 28. Qe7
{[%clk 00:16:57]} {[%emt 00:00:50]} Re8 {[%clk 00:12:18]} {[%emt 00:00:55]} 29.
Qxc5 {[%clk 00:17:07]} {[%emt 00:00:20]} Rc8 {[%clk 00:11:59]} {[%emt
00:00:49]} 30. Qb4 {[%clk 00:11:44]} {[%emt 00:05:54]} Nxd5 {[%clk 00:09:59]}
{[%emt 00:02:30]} 31. Qxb7 {[%clk 00:12:09]} {[%emt 00:00:05]} Be6 {[%clk
00:10:25]} {[%emt 00:00:04]} 32. a5 {[%clk 00:10:44]} {[%emt 00:01:56]} Bd4
{[%clk 00:06:58]} {[%emt 00:03:57]} 33. a6 {[%clk 00:07:34]} {[%emt 00:03:40]}
Nb6 {[%clk 00:07:24]} {[%emt 00:00:04]} 34. a7 {[%clk 00:06:48]} {[%emt
00:01:16]} Bd5 {[%clk 00:06:59]} {[%emt 00:00:55]} 35. Qb8 {[%clk 00:06:44]}
{[%emt 00:00:35]} f6 {[%clk 00:04:57]} {[%emt 00:02:32]} 36. Bd2 {[%clk
00:05:50]} {[%emt 00:01:23]} Kf7 {[%clk 00:04:17]} {[%emt 00:01:10]} 37. Bc3
{[%clk 00:05:28]} {[%emt 00:00:52]} Be3 {[%clk 00:01:11]} {[%emt 00:03:36]} 38.
Qd6 {[%clk 00:05:06]} {[%emt 00:00:52]} Be6 {[%clk 00:01:15]} {[%emt 00:00:26]}
39. Bd4 {[%clk 00:04:14]} {[%emt 00:01:23]} Bxd4 {[%clk 00:00:46]} {[%emt
00:00:59]} 40. Qxd4 {[%clk 00:04:34]} {[%emt 00:00:09]} Nd5 {[%clk 00:00:32]}
{[%emt 00:00:45]} 41. Ne4 {[%clk 00:03:49]} {[%emt 00:01:15]} Ke7 {[%clk
00:22:51]} {[%emt 00:08:11]} 42. Nc5 {[%clk 00:32:25]} {[%emt 00:01:53]} Kd6
{[%clk 00:16:25]} {[%emt 00:06:56]} 43. Qxc4 {[%clk 00:23:30]} {[%emt
00:09:26]} Rxc5 {[%clk 00:16:38]} {[%emt 00:00:17]} 44. Qa6+ {[%clk 00:22:31]}
{[%emt 00:01:29]} Rc6 {[%clk 00:10:23]} {[%emt 00:06:44]} 45. Qa3+ {[%clk
00:22:50]} {[%emt 00:00:12]} Ke5 {[%clk 00:10:36]} {[%emt 00:00:17]} 46. a8=Q
{[%clk 00:20:35]} {[%emt 00:02:44]} Rc1+ {[%clk 00:05:45]} {[%emt 00:05:22]} 47.
Kf2 {[%clk 00:20:58]} {[%emt 00:00:07]} Rc2+ {[%clk 00:04:58]} {[%emt
00:01:17]} 48. Kf3 {[%clk 00:20:50]} {[%emt 00:00:38]} Nc3 {[%clk 00:04:08]}
{[%emt 00:01:20]} 49. Qb8+ {[%clk 00:21:03]} {[%emt 00:00:16]} 1-0

[Event "Berliner Meisterschaft 2023"]
[Site "Berlin"]
[Date "2023.04.12"]
[Round "5.2"]
[White "Glek, Igor"]
[Black "Poltorak, Sebastian"]
[Result "1-0"]
[TimeControl "90 minutes / 40 moves + 30 minutes + 30 seconds"]
[WhiteTitle "GM"]
[BlackTitle "FM"]
[WhiteFideId "4100484"]
[BlackFideId "1199498"]
[WhiteElo "2443"]
[BlackElo "2368"]

1. e4 {[%clk 01:21:42]} {[%emt 00:09:18]} c6 {[%clk 01:30:05]} {[%emt
00:00:49]} 2. Nf3 {[%clk 01:21:34]} {[%emt 00:00:44]} d5 {[%clk 01:30:22]}
{[%emt 00:00:13]} 3. d3 {[%clk 01:22:00]} {[%emt 00:00:04]} Bg4 {[%clk
01:30:38]} {[%emt 00:00:14]} 4. Nbd2 {[%clk 01:14:37]} {[%emt 00:07:53]} Nd7
{[%clk 01:28:14]} {[%emt 00:02:53]} 5. h3 {[%clk 01:11:37]} {[%emt 00:03:31]}
Bh5 {[%clk 01:26:32]} {[%emt 00:02:13]} 6. Be2 {[%clk 01:09:27]} {[%emt
00:02:40]} e6 {[%clk 01:23:12]} {[%emt 00:03:50]} 7. O-O {[%clk 01:08:43]}
{[%emt 00:01:14]} Bd6 {[%clk 01:19:10]} {[%emt 00:04:33]} 8. exd5 {[%clk
00:46:39]} {[%emt 00:22:34]} cxd5 {[%clk 01:18:07]} {[%emt 00:01:33]} 9. Nd4
{[%clk 00:47:03]} {[%emt 00:00:06]} Bg6 {[%clk 01:11:38]} {[%emt 00:06:59]} 10.
f4 {[%clk 00:31:54]} {[%emt 00:15:40]} Ne7 {[%clk 01:02:45]} {[%emt 00:09:22]}
11. N2f3 {[%clk 00:30:07]} {[%emt 00:02:16]} O-O {[%clk 00:46:51]} {[%emt
00:16:25]} 12. Be3 {[%clk 00:26:13]} {[%emt 00:04:24]} Nc6 {[%clk 00:42:33]}
{[%emt 00:04:48]} 13. Qd2 {[%clk 00:22:43]} {[%emt 00:04:00]} Qe7 {[%clk
00:38:09]} {[%emt 00:04:55]} 14. Rae1 {[%clk 00:20:14]} {[%emt 00:02:58]} Rae8
{[%clk 00:35:29]} {[%emt 00:03:10]} 15. Bd1 {[%clk 00:14:06]} {[%emt 00:06:38]}
Qd8 {[%clk 00:30:21]} {[%emt 00:05:39]} 16. c3 {[%clk 00:13:24]} {[%emt
00:01:12]} f6 {[%clk 00:28:26]} {[%emt 00:02:24]} 17. b4 {[%clk 00:05:41]}
{[%emt 00:08:14]} a6 {[%clk 00:15:28]} {[%emt 00:13:28]} 18. Bb3 {[%clk
00:05:36]} {[%emt 00:00:35]} Nb6 {[%clk 00:12:51]} {[%emt 00:03:07]} 19. Kh1
{[%clk 00:03:59]} {[%emt 00:02:07]} Bc7 {[%clk 00:09:18]} {[%emt 00:04:03]} 20.
Nxc6 {[%clk 00:02:25]} {[%emt 00:02:03]} bxc6 {[%clk 00:09:43]} {[%emt
00:00:06]} 21. Bc5 {[%clk 00:02:40]} {[%emt 00:00:14]} Rf7 {[%clk 00:07:20]}
{[%emt 00:02:53]} 22. Nd4 {[%clk 00:02:46]} {[%emt 00:00:24]} Qd7 {[%emt
00:01:38]} 23. a4 {[%clk 00:03:06]} e5 {[%clk 00:05:07]} {[%emt 00:01:46]} 24.
a5 {[%clk 00:01:40]} {[%emt 00:01:56]} Nc8 {[%clk 00:05:07]} {[%emt 00:00:30]}
25. f5 {[%clk 00:01:16]} {[%emt 00:00:54]} exd4 {[%clk 00:05:35]} {[%emt
00:00:03]} 26. fxg6 {[%clk 00:01:33]} {[%emt 00:00:13]} hxg6 {[%clk 00:06:02]}
{[%emt 00:00:03]} 27. Rxe8+ {[%clk 00:01:34]} {[%emt 00:00:29]} Qxe8 {[%clk
00:06:29]} {[%emt 00:00:03]} 28. Re1 {[%clk 00:01:50]} {[%emt 00:00:13]} Qd7
{[%clk 00:06:36]} {[%emt 00:00:24]} 29. c4 {[%clk 00:02:07]} {[%emt 00:00:13]}
Kh7 {[%clk 00:03:13]} {[%emt 00:03:52]} 30. Qf2 {[%clk 00:00:56]} {[%emt
00:01:40]} g5 {[%clk 00:01:49]} {[%emt 00:01:55]} 31. cxd5 {[%clk 00:00:45]}
{[%emt 00:00:42]} cxd5 {[%clk 00:02:14]} {[%emt 00:00:05]} 32. Qf3 {[%clk
00:00:57]} {[%emt 00:00:17]} g4 {[%clk 00:00:58]} {[%emt 00:01:47]} 33. hxg4
{[%clk 00:00:38]} {[%emt 00:00:48]} g6 {[%clk 00:00:31]} {[%emt 00:00:57]} 34.
Bxd5 {[%clk 00:00:59]} {[%emt 00:00:08]} 1-0

[Event "Berliner Meisterschaft 2023"]
[Site "Berlin"]
[Date "2023.04.12"]
[Round "5.3"]
[White "Glantz, Robert"]
[Black "Baskin, Robert"]
[Result "0-1"]
[TimeControl "90 minutes / 40 moves + 30 minutes + 30 seconds"]
[WhiteTitle "FM"]
[BlackTitle "IM"]
[WhiteFideId "24629596"]
[BlackFideId "24662402"]
[WhiteElo "2360"]
[BlackElo "2442"]

1. b3 {[%clk 01:21:07]} {[%emt 00:09:45]} Nf6 {[%clk 01:30:11]} {[%emt
00:00:57]} 2. Bb2 {[%clk 01:21:07]} {[%emt 00:00:30]} g6 {[%clk 01:30:21]}
{[%emt 00:00:20]} 3. Nf3 {[%clk 01:19:01]} {[%emt 00:02:35]} Bg7 {[%clk
01:30:27]} {[%emt 00:00:24]} 4. g3 {[%clk 01:19:11]} {[%emt 00:00:21]} d5
{[%clk 01:29:31]} {[%emt 00:01:27]} 5. c4 {[%clk 01:19:15]} {[%emt 00:00:25]}
O-O {[%clk 01:29:26]} {[%emt 00:00:36]} 6. Bg2 {[%clk 01:19:15]} {[%emt
00:00:29]} Nc6 {[%clk 01:29:14]} {[%emt 00:00:43]} 7. d4 {[%clk 01:07:45]}
{[%emt 00:12:00]} dxc4 {[%clk 01:19:49]} {[%emt 00:09:55]} 8. bxc4 {[%clk
01:07:52]} {[%emt 00:00:22]} e5 {[%clk 01:19:44]} {[%emt 00:00:36]} 9. O-O
{[%clk 00:55:37]} {[%emt 00:12:44]} exd4 {[%clk 01:19:12]} {[%emt 00:01:02]} 10.
Nxd4 {[%clk 00:55:45]} {[%emt 00:00:22]} Nxd4 {[%clk 01:18:27]} {[%emt
00:01:15]} 11. Bxd4 {[%clk 00:42:50]} {[%emt 00:13:25]} c6 {[%clk 01:08:19]}
{[%emt 00:10:38]} 12. Nc3 {[%clk 00:41:31]} {[%emt 00:01:48]} Be6 {[%clk
01:02:31]} {[%emt 00:06:18]} 13. c5 {[%clk 00:39:59]} {[%emt 00:02:02]} Qa5
{[%clk 00:59:40]} {[%emt 00:03:22]} 14. e3 {[%clk 00:34:30]} {[%emt 00:05:59]}
Rad8 {[%emt 00:19:37]} 15. Qa4 {[%clk 00:32:01]} Qxa4 {[%clk 00:40:21]} {[%emt
00:03:42]} 16. Nxa4 {[%clk 00:32:29]} {[%emt 00:00:02]} Rd7 {[%clk 00:40:41]}
{[%emt 00:00:09]} 17. Nc3 {[%clk 00:29:53]} {[%emt 00:03:06]} Ng4 {[%clk
00:37:25]} {[%emt 00:03:46]} 18. Rab1 {[%clk 00:18:30]} {[%emt 00:11:53]} Rfd8
{[%clk 00:29:01]} {[%emt 00:08:55]} 19. h3 {[%clk 00:14:56]} {[%emt 00:04:03]}
Bxd4 {[%clk 00:28:36]} 20. exd4 {[%clk 00:15:24]} {[%emt 00:00:57]} Nf6 {[%clk
00:28:37]} {[%emt 00:00:29]} 21. Rfd1 {[%clk 00:13:38]} {[%emt 00:02:15]} a5
{[%clk 00:24:58]} {[%emt 00:04:09]} 22. Rdc1 {[%clk 00:00:48]} {[%emt
00:13:20]} Rxd4 {[%clk 00:23:52]} {[%emt 00:01:37]} 23. Rxb7 {[%clk 00:01:09]}
{[%emt 00:00:10]} Rc4 {[%clk 00:23:48]} {[%emt 00:00:34]} 24. Rbb1 {[%clk
00:00:37]} {[%emt 00:01:01]} Rxc5 {[%emt 00:02:38]} 25. a4 {[%clk 00:00:39]}
Rd4 {[%clk 00:14:09]} {[%emt 00:08:29]} 26. Ne2 {[%clk 00:00:35]} {[%emt
00:00:34]} Rxc1+ {[%clk 00:08:47]} {[%emt 00:05:52]} 27. Rxc1 {[%clk 00:01:04]}
Rxa4 {[%clk 00:09:12]} {[%emt 00:00:06]} 28. Rxc6 {[%clk 00:01:15]} {[%emt
00:00:19]} Kg7 {[%clk 00:09:12]} {[%emt 00:00:30]} 29. Nf4 {[%clk 00:01:11]}
{[%emt 00:00:34]} Bb3 {[%clk 00:09:31]} {[%emt 00:00:11]} 30. Nd3 {[%clk
00:00:47]} {[%emt 00:00:54]} Ra1+ {[%clk 00:07:53]} {[%emt 00:02:07]} 31. Kh2
{[%clk 00:01:07]} {[%emt 00:00:10]} a4 {[%clk 00:08:10]} {[%emt 00:00:14]} 32.
Nc5 {[%clk 00:00:45]} {[%emt 00:00:52]} Bc4 {[%clk 00:05:46]} {[%emt 00:02:54]}
33. Nb7 {[%clk 00:00:34]} {[%emt 00:00:40]} Rc1 {[%clk 00:05:10]} {[%emt
00:01:06]} 34. Nd6 {[%clk 00:00:35]} {[%emt 00:00:30]} a3 {[%clk 00:05:35]}
{[%emt 00:00:05]} 35. Nxc4 {[%clk 00:00:44]} {[%emt 00:00:21]} a2 {[%clk
00:06:00]} {[%emt 00:00:05]} 36. Ra6 {[%clk 00:01:03]} {[%emt 00:00:11]} a1=Q
{[%clk 00:06:24]} {[%emt 00:00:06]} 37. Rxa1 {[%clk 00:01:30]} {[%emt
00:00:03]} Rxa1 {[%clk 00:06:51]} {[%emt 00:00:03]} 38. Ne3 {[%clk 00:01:05]}
{[%emt 00:00:55]} Kf8 {[%clk 00:06:39]} {[%emt 00:00:42]} 39. h4 {[%clk
00:00:39]} {[%emt 00:00:56]} Ra2 {[%clk 00:06:50]} {[%emt 00:00:19]} 40. Kg1
{[%clk 00:00:57]} {[%emt 00:00:11]} Ra1+ {[%clk 00:07:18]} {[%emt 00:00:03]} 41.
Kh2 {[%clk 00:01:04]} {[%emt 00:00:22]} Nd7 {[%clk 00:04:36]} {[%emt 00:03:12]}
42. Nd5 {[%clk 00:20:38]} {[%emt 00:10:56]} Ne5 {[%clk 00:33:46]} {[%emt
00:01:20]} 43. f4 {[%clk 00:15:21]} {[%emt 00:05:47]} Ng4+ {[%clk 00:32:24]}
{[%emt 00:01:53]} 44. Kh3 {[%clk 00:15:49]} {[%emt 00:00:01]} f5 {[%clk
00:31:03]} {[%emt 00:01:50]} 45. h5 {[%clk 00:14:21]} {[%emt 00:01:58]} Ra2
{[%clk 00:30:10]} {[%emt 00:01:23]} 46. hxg6 {[%clk 00:11:16]} {[%emt
00:03:35]} hxg6 {[%clk 00:30:36]} {[%emt 00:00:05]} 47. Nb4 {[%clk 00:08:45]}
{[%emt 00:03:01]} Rd2 {[%clk 00:30:40]} {[%emt 00:00:25]} 48. Nc6 {[%clk
00:06:59]} {[%emt 00:02:17]} Kf7 {[%clk 00:30:34]} {[%emt 00:00:35]} 49. Na5
{[%clk 00:06:54]} {[%emt 00:00:35]} Ke7 {[%clk 00:22:02]} {[%emt 00:09:03]} 50.
Nb3 {[%clk 00:05:56]} {[%emt 00:01:28]} Rd8 {[%clk 00:21:54]} {[%emt 00:00:37]}
51. Bc6 {[%clk 00:02:22]} {[%emt 00:04:04]} Rd3 {[%clk 00:22:02]} {[%emt
00:00:22]} 52. Na5 {[%clk 00:01:58]} {[%emt 00:00:54]} Ra3 {[%clk 00:21:56]}
{[%emt 00:00:35]} 53. Nb7 {[%clk 00:02:05]} {[%emt 00:00:24]} Rc3 {[%clk
00:21:37]} {[%emt 00:00:48]} 54. Bg2 {[%clk 00:01:18]} {[%emt 00:01:17]} Kd7
{[%clk 00:18:25]} {[%emt 00:03:43]} 55. Kh4 {[%clk 00:00:52]} {[%emt 00:00:56]}
Kc7 {[%clk 00:18:37]} {[%emt 00:00:17]} 56. Na5 {[%clk 00:00:41]} {[%emt
00:00:41]} Kb6 {[%clk 00:18:46]} {[%emt 00:00:21]} 57. Nb7 {[%clk 00:00:45]}
{[%emt 00:00:27]} Ne3 {[%clk 00:18:40]} {[%emt 00:00:36]} 58. Bh1 {[%clk
00:00:40]} {[%emt 00:00:35]} Rc1 {[%clk 00:18:59]} {[%emt 00:00:11]} 59. Bf3
{[%clk 00:00:38]} {[%emt 00:00:32]} Rf1 {[%clk 00:19:21]} {[%emt 00:00:08]} 60.
Be2 {[%clk 00:00:33]} {[%emt 00:00:36]} Kxb7 {[%clk 00:19:15]} {[%emt
00:00:36]} 61. Bxf1 {[%clk 00:00:48]} {[%emt 00:00:15]} Nxf1 {[%clk 00:19:40]}
{[%emt 00:00:05]} 62. g4 {[%clk 00:00:39]} {[%emt 00:00:38]} Ne3 {[%clk
00:19:58]} {[%emt 00:00:12]} 63. gxf5 {[%clk 00:00:41]} {[%emt 00:00:27]} gxf5
{[%clk 00:20:23]} {[%emt 00:00:06]} 0-1

[Event "Berliner Meisterschaft 2023"]
[Site "Berlin"]
[Date "2023.04.12"]
[Round "5.4"]
[White "Bruedigam, Martin"]
[Black "Strache, Micheal"]
[Result "1/2-1/2"]
[TimeControl "90 minutes / 40 moves + 30 minutes + 30 seconds"]
[WhiteTitle "IM"]
[WhiteFideId "24608033"]
[BlackFideId "4693183"]
[WhiteElo "2378"]
[BlackElo "2287"]

1. d4 {[%clk 01:30:55]} {[%emt 00:00:04]} d5 {[%clk 01:30:13]} {[%emt
00:00:47]} 2. c4 {[%clk 01:31:04]} {[%emt 00:00:21]} e6 {[%clk 01:30:18]}
{[%emt 00:00:26]} 3. Nc3 {[%clk 01:31:12]} {[%emt 00:00:22]} c5 {[%clk
01:29:15]} {[%emt 00:01:33]} 4. e3 {[%clk 01:26:05]} {[%emt 00:05:37]} Nf6
{[%clk 01:28:41]} {[%emt 00:01:05]} 5. Nf3 {[%clk 01:26:29]} {[%emt 00:00:05]}
a6 {[%clk 01:28:19]} {[%emt 00:00:51]} 6. dxc5 {[%clk 01:10:23]} {[%emt
00:16:37]} Bxc5 {[%clk 01:28:31]} {[%emt 00:00:19]} 7. Be2 {[%clk 01:10:48]}
{[%emt 00:00:05]} O-O {[%clk 01:28:21]} {[%emt 00:00:40]} 8. cxd5 {[%clk
01:11:01]} {[%emt 00:00:17]} exd5 {[%clk 01:28:24]} {[%emt 00:00:27]} 9. O-O
{[%clk 01:11:24]} {[%emt 00:00:07]} Nc6 {[%clk 01:26:19]} {[%emt 00:02:35]} 10.
b3 {[%clk 01:11:25]} {[%emt 00:00:30]} Ba7 {[%clk 01:22:27]} {[%emt 00:04:21]}
11. Bb2 {[%clk 01:10:28]} {[%emt 00:01:27]} Qd6 {[%clk 01:11:46]} {[%emt
00:11:11]} 12. Qd3 {[%clk 00:56:09]} {[%emt 00:14:49]} Bg4 {[%clk 01:05:10]}
{[%emt 00:07:06]} 13. Ng5 {[%clk 00:47:09]} {[%emt 00:09:29]} Ne5 {[%clk
01:03:28]} {[%emt 00:02:12]} 14. Qd2 {[%clk 00:45:41]} {[%emt 00:01:58]} Rad8
{[%clk 00:32:59]} {[%emt 00:30:59]} 15. Rad1 {[%clk 00:26:57]} {[%emt
00:19:15]} Bb8 {[%clk 00:16:26]} {[%emt 00:17:03]} 16. f4 {[%clk 00:26:52]}
{[%emt 00:00:35]} Nc6 {[%clk 00:15:56]} {[%emt 00:01:00]} 17. Bxg4 {[%clk
00:20:45]} {[%emt 00:06:36]} Nxg4 {[%clk 00:15:47]} {[%emt 00:00:40]} 18. Nxd5
{[%clk 00:20:03]} {[%emt 00:01:12]} Qh6 {[%clk 00:03:57]} {[%emt 00:12:20]} 19.
h3 {[%clk 00:18:55]} {[%emt 00:01:38]} Rxd5 {[%clk 00:02:49]} {[%emt 00:01:38]}
20. Qxd5 {[%clk 00:19:17]} {[%emt 00:00:07]} Nxe3 {[%clk 00:03:12]} {[%emt
00:00:07]} 21. Qe4 {[%clk 00:17:47]} {[%emt 00:02:00]} Ba7 {[%clk 00:03:00]}
{[%emt 00:00:42]} 22. Kh1 {[%clk 00:17:59]} {[%emt 00:00:18]} Nxf1 {[%clk
00:02:21]} {[%emt 00:01:08]} 23. Rxf1 {[%clk 00:18:28]} {[%emt 00:00:01]} Qg6
{[%clk 00:02:44]} {[%emt 00:00:07]} 24. Rd1 {[%clk 00:16:18]} {[%emt 00:02:39]}
Qxe4 {[%clk 00:01:34]} {[%emt 00:01:41]} 25. Nxe4 {[%clk 00:16:42]} {[%emt
00:00:06]} 1/2-1/2

[Event "Berliner Meisterschaft 2023"]
[Site "Berlin"]
[Date "2023.04.12"]
[Round "5.5"]
[White "Lagunow, Alexander"]
[Black "Haug, Havard"]
[Result "1/2-1/2"]
[TimeControl "90 minutes / 40 moves + 30 minutes + 30 seconds"]
[WhiteTitle "IM"]
[WhiteFideId "4616049"]
[BlackFideId "1547887"]
[WhiteElo "2341"]
[BlackElo "2090"]

1. d4 {[%clk 01:22:21]} {[%emt 00:08:38]} d5 {[%clk 01:30:51]} {[%emt
00:00:08]} 2. c4 {[%clk 01:22:25]} {[%emt 00:00:28]} e6 {[%clk 01:31:14]}
{[%emt 00:00:06]} 3. Nf3 {[%clk 01:22:34]} {[%emt 00:00:20]} c5 {[%clk
01:31:36]} {[%emt 00:00:08]} 4. cxd5 {[%clk 01:22:37]} {[%emt 00:00:28]} exd5
{[%clk 01:31:54]} {[%emt 00:00:11]} 5. Nc3 {[%clk 01:22:41]} {[%emt 00:00:27]}
Nf6 {[%clk 01:32:09]} {[%emt 00:00:15]} 6. g3 {[%clk 01:22:38]} {[%emt
00:00:33]} Nc6 {[%clk 01:32:18]} {[%emt 00:00:22]} 7. Bg2 {[%clk 01:22:48]}
{[%emt 00:00:19]} Be7 {[%clk 01:32:41]} {[%emt 00:00:08]} 8. O-O {[%clk
01:23:01]} {[%emt 00:00:17]} O-O {[%clk 01:33:04]} {[%emt 00:00:07]} 9. b3
{[%clk 01:21:43]} {[%emt 00:01:49]} Ne4 {[%clk 01:28:44]} {[%emt 00:04:49]} 10.
Bb2 {[%clk 01:21:18]} {[%emt 00:00:56]} cxd4 {[%clk 01:27:38]} {[%emt
00:01:36]} 11. Nb5 {[%clk 01:16:20]} {[%emt 00:05:27]} Bf6 {[%clk 01:24:15]}
{[%emt 00:03:52]} 12. Nbxd4 {[%clk 01:13:15]} {[%emt 00:03:36]} Bg4 {[%clk
01:22:33]} {[%emt 00:02:12]} 13. Nxc6 {[%clk 00:59:18]} {[%emt 00:14:27]} bxc6
{[%clk 01:22:52]} {[%emt 00:00:11]} 14. Qc2 {[%clk 00:58:26]} {[%emt 00:01:22]}
Bf5 {[%clk 01:21:36]} {[%emt 00:01:46]} 15. Qc1 {[%clk 00:54:08]} {[%emt
00:04:48]} Rc8 {[%clk 01:19:13]} {[%emt 00:02:53]} 16. Rd1 {[%clk 00:48:41]}
{[%emt 00:05:57]} Re8 {[%clk 01:14:48]} {[%emt 00:04:52]} 17. e3 {[%clk
00:40:20]} {[%emt 00:08:53]} c5 {[%clk 01:12:20]} {[%emt 00:02:58]} 18. Nd2
{[%clk 00:34:06]} {[%emt 00:06:45]} Qe7 {[%clk 01:07:59]} {[%emt 00:04:51]} 19.
Nxe4 {[%clk 00:32:57]} {[%emt 00:01:39]} Bxb2 {[%clk 01:04:41]} {[%emt
00:03:47]} 20. Qxb2 {[%clk 00:33:21]} {[%emt 00:00:07]} Bxe4 {[%clk 01:05:04]}
{[%emt 00:00:07]} 21. Qe2 {[%clk 00:27:22]} {[%emt 00:06:28]} 1/2-1/2

[Event "Berliner Meisterschaft 2023"]
[Site "Berlin"]
[Date "2023.04.12"]
[Round "5.6"]
[White "Schliebener, Stephan"]
[Black "von Herman, Ulf"]
[Result "1/2-1/2"]
[TimeControl "90 minutes / 40 moves + 30 minutes + 30 seconds"]
[BlackTitle "IM"]
[WhiteFideId "4621662"]
[BlackFideId "4608500"]
[WhiteElo "2080"]
[BlackElo "2332"]

1. d4 {[%clk 01:30:57]} {[%emt 00:00:02]} Nf6 {[%clk 01:30:44]} {[%emt
00:00:15]} 2. c4 {[%clk 01:31:24]} {[%emt 00:00:04]} e6 {[%clk 01:31:03]}
{[%emt 00:00:11]} 3. Nc3 {[%clk 01:31:48]} {[%emt 00:00:06]} d5 {[%clk
01:31:27]} {[%emt 00:00:05]} 4. cxd5 {[%clk 01:30:38]} {[%emt 00:01:41]} exd5
{[%clk 01:31:49]} {[%emt 00:00:07]} 5. Bg5 {[%clk 01:31:03]} {[%emt 00:00:05]}
Be7 {[%clk 01:30:42]} {[%emt 00:01:37]} 6. e3 {[%clk 01:31:22]} {[%emt
00:00:12]} c6 {[%clk 01:30:14]} {[%emt 00:00:57]} 7. Bd3 {[%clk 01:31:43]}
{[%emt 00:00:08]} Nbd7 {[%clk 01:30:18]} {[%emt 00:00:26]} 8. Qc2 {[%clk
01:31:41]} {[%emt 00:00:32]} Nh5 {[%clk 01:30:34]} {[%emt 00:00:14]} 9. Bxe7
{[%clk 01:31:23]} {[%emt 00:00:49]} Qxe7 {[%clk 01:31:02]} {[%emt 00:00:02]} 10.
Nge2 {[%clk 01:31:02]} {[%emt 00:00:52]} Nb6 {[%clk 01:29:49]} {[%emt
00:01:42]} 11. O-O {[%clk 01:26:54]} {[%emt 00:04:39]} g6 {[%clk 01:23:52]}
{[%emt 00:06:27]} 12. Rae1 {[%clk 01:25:33]} {[%emt 00:01:50]} O-O {[%clk
01:24:14]} {[%emt 00:00:08]} 13. a3 {[%clk 01:23:38]} {[%emt 00:02:26]} Re8
{[%clk 01:01:22]} {[%emt 00:23:21]} 14. b4 {[%clk 01:17:59]} {[%emt 00:06:10]}
Be6 {[%clk 00:55:47]} {[%emt 00:06:05]} 15. Na4 {[%clk 01:05:19]} {[%emt
00:13:11]} Nxa4 {[%clk 00:45:28]} {[%emt 00:10:48]} 16. Qxa4 {[%clk 01:05:42]}
{[%emt 00:00:07]} a6 {[%clk 00:45:47]} {[%emt 00:00:11]} 17. Qb3 {[%clk
01:05:39]} {[%emt 00:00:33]} Nf6 {[%clk 00:43:05]} {[%emt 00:03:11]} 18. Nf4
{[%clk 01:00:05]} {[%emt 00:06:02]} Qd6 {[%clk 00:39:50]} {[%emt 00:03:47]} 19.
Qc3 {[%clk 00:54:37]} {[%emt 00:05:58]} Nd7 {[%clk 00:33:56]} {[%emt 00:06:24]}
20. Rc1 {[%clk 00:54:29]} {[%emt 00:00:25]} 1/2-1/2